fUST/lending_fUST_20250623
["ID","MTS","AMOUNT","RATE_DAILY","PERIOD"]
[367040499,1750631447520,-804.977083,0.00026513,7]
[367040500,1750631447530,-804.977083,0.00026513,7]
[367040501,1750631447540,-804.977083,0.00026513,7]
[367040502,1750631447550,-804.977083,0.00026513,7]
[367040503,1750631447561,-765.04353216,0.00026513,7]
[367040504,1750631448111,-39.93355084,0.00026513,7]
[367040505,1750631448121,-421.06644916,0.00026513,7]
[367040506,1750631448133,-474.55340243,0.00026513,7]
[367040507,1750631448717,-489.68299844,0.00026513,7]
[367040508,1750631448736,-1431.02836761,0.00026513,7]
[367040509,1750631449697,-160.0,0.00024657,3]
[367040510,1750631449707,-160.0,0.00026,7]
[367040511,1750631449716,-148.83410475,0.00026513,7]
[367040512,1750631493535,150.0,0.00021952,30]
[367040513,1750631494176,150.0,0.00023947,30]
[367040514,1750631538571,370.83,0.00025,120]
[367040515,1750631581737,150.0,0.0002187,30]
[367040516,1750631582149,150.0,0.00023858,30]
[367040518,1750631659399,158.0,0.00018082,3]
[367040519,1750631662147,150.0,0.00021982,30]
[367040520,1750631662573,150.0,0.0002398,30]
[367040522,1750631740956,150.0,0.00021711,30]
[367040523,1750631741364,150.0,0.00023685,30]
[367040524,1750631821896,150.0,0.00022144,30]
[367040525,1750631822345,150.0,0.00024157,30]
[367040526,1750631903294,150.0,0.00021705,30]
[367040527,1750631903688,150.0,0.00023678,30]
[367040529,1750631972572,159.0,0.00018082,3]
[367040530,1750631984317,150.0,0.00021544,30]
[367040531,1750631984727,150.0,0.00023502,30]
[367040532,1750632064187,150.0,0.0002172,30]
[367040533,1750632064999,150.0,0.00023694,30]
[367040534,1750632143837,150.0,0.00021707,30]
[367040535,1750632144752,150.0,0.00023681,30]
[367040536,1750632233132,150.0,0.00022099,30]
[367040537,1750632233570,150.0,0.00024108,30]
[367040539,1750632313320,150.0,0.00021701,30]
[367040540,1750632313717,150.0,0.00023674,30]
[367040541,1750632357287,-622.38929329,0.00023996,2]
[367040542,1750632357309,-500.0,0.00024238,2]
[367040543,1750632357329,-107.57530237,0.00024273,2]
[367040544,1750632391358,150.0,0.00021707,30]
[367040545,1750632392302,150.0,0.0002368,30]
[367040547,1750632420169,254.277085,0.00013699,2]
[367040548,1750632420555,-161.07501201,0.00020187,2]
[367040550,1750632433096,-93.20207299,0.00020187,2]
[367040551,1750632433121,-2184.12078269,0.00024,6]
[367040552,1750632449119,-500.0,0.00023371,2]
[367040553,1750632449139,-2815.87921731,0.00024,6]
[367040554,1750632449161,-1200.0,0.00024287,2]
[367040555,1750632449181,-300.0,0.00024287,2]
[367040556,1750632449200,-945.85320008,0.00024287,14]
[367040557,1750632449221,-300.0,0.00024287,2]
[367040558,1750632449242,-6794.94018968,0.00024288,2]
[367040559,1750632475833,150.0,0.00021681,30]
[367040560,1750632476224,150.0,0.00023652,30]
[367040561,1750632545497,-442.02353032,0.00022188,2]
[367040562,1750632551967,150.0,0.00021611,30]
[367040563,1750632552370,150.0,0.00023576,30]
[367040564,1750632630307,150.0,0.00021732,30]
[367040565,1750632630716,150.0,0.00023708,30]
[367040608,1750632632465,-228.7101048,0.00024099,2]
[367040610,1750632632475,-339.15114426,0.000241,10]
[367040828,1750632638322,-1279.022,0.000241,10]
[367040829,1750632638373,-3381.82685574,0.000241,10]
[367040830,1750632638382,-300.0,0.00024199,2]
[367040831,1750632638391,-1200.0,0.00024199,2]
[367040832,1750632638400,-4396.94772289,0.000242,11]
[367040853,1750632640708,-305.76885228,0.000242,11]
[367040874,1750632643477,-297.28342483,0.000242,11]
[367040875,1750632643489,-218.492,0.00024289,6]
[367040876,1750632643499,-1864.16930151,0.0002429,2]
[367040880,1750632643613,-1477.00289499,0.0002429,2]
[367040882,1750632643625,-21558.8278035,0.0002429,2]
[367040884,1750632643634,-158.37339756,0.00024333,2]
[367040886,1750632643645,-160.0,0.00024433,2]
[367040888,1750632643655,-160.0,0.00024434,2]
[367040890,1750632643665,-836.56272071,0.00024434,2]
[367040892,1750632643674,-160.0,0.00024434,2]
[367040894,1750632643683,-425.01221603,0.00024434,2]
[367040896,1750632643694,-846.39664074,0.00024434,2]
[367040898,1750632643705,-213.59462818,0.00024434,2]
[367040900,1750632643714,-230.14598372,0.00024434,2]
[367040902,1750632643725,-500.0,0.00024472,2]
[367040904,1750632643734,-515.8693026,0.000246,2]
[367040906,1750632643744,-500.0,0.00024656,2]
[367040907,1750632643753,-238.84,0.00024656,2]
[367040908,1750632643762,-160.0,0.00024657,3]
[367040909,1750632643771,-1000.0,0.00024658,2]
[367040910,1750632643781,-1000.0,0.00024658,2]
[367040911,1750632643791,-1000.0,0.00024658,2]
[367040912,1750632643800,-567.07130698,0.00024658,2]
[367040913,1750632643836,-432.92869302,0.00024658,2]
[367040914,1750632643845,-561.32210203,0.000249,12]
[367040915,1750632643855,-561.32210176,0.00024969,12]
[367040916,1750632643864,-288.250493,0.00024989,2]
[367040917,1750632643873,-500.0,0.00024999,2]
[367040918,1750632643883,-500.0,0.00024999,2]
[367040919,1750632643892,-646.94612125,0.00024999,2]
[367040920,1750632643901,-500.0,0.00024999,2]
[367040921,1750632643910,-500.0,0.00024999,2]
[367040922,1750632643919,-500.0,0.00024999,2]
[367040923,1750632643930,-434.02898732,0.00024999,2]
[367040926,1750632646660,-160.0,0.00024434,2]
[367040927,1750632646670,-425.01221603,0.00024434,2]
[367040928,1750632646680,-65.97101268,0.00024999,2]
[367040929,1750632646690,-498.71932841,0.00024999,2]
[367040930,1750632646699,-1897.68,0.00025,2]
[367040931,1750632646708,-145.15653629,0.00025038,12]
[367040932,1750632646720,-416.16556547,0.00025038,12]
[367040933,1750632646733,-561.32210176,0.00025107,12]
[367040934,1750632646743,-207.4,0.00025157,2]
[367040935,1750632646752,-561.32210176,0.00025176,12]
[367040936,1750632646761,-500.0,0.00025204,30]
[367040937,1750632646772,-561.32210176,0.00025245,12]
[367040938,1750632646781,-331.4565222,0.00025263,2]
[367040939,1750632646791,-561.32210176,0.00025314,12]
[367040940,1750632646801,-319.0,0.00025363,2]
[367040941,1750632646810,-411.11433427,0.00025383,13]
[367040942,1750632646841,-150.20776749,0.00025383,13]
[367040943,1750632646851,-561.32210176,0.00025452,13]
[367040944,1750632646862,-561.32210176,0.00025521,13]
[367040945,1750632646871,-561.32210176,0.0002559,13]
[367040946,1750632646881,-561.32210176,0.00025659,13]
[367040947,1750632646890,-150.0,0.00025683,30]
[367040948,1750632646900,-149.50449665,0.00025728,13]
[367040951,1750632707040,150.0,0.00021815,30]
[367040952,1750632707468,150.0,0.00023798,30]
[367040953,1750632784235,150.0,0.00021855,30]
[367040954,1750632785175,150.0,0.00023841,30]
[367040955,1750632858101,150.0,0.00021655,30]
[367040956,1750632858225,150.0,0.00023624,30]
[367040960,1750632932407,150.0,0.00021672,30]
[367040961,1750632932505,150.0,0.00023642,30]
[367040962,1750633006388,150.0,0.00021725,30]
[367040963,1750633073493,150.0,0.00021729,30]
[367040964,1750633073922,150.0,0.00023705,30]
[367040965,1750633153988,150.0,0.00021935,30]
[367040966,1750633154421,150.0,0.00023929,30]
[367040970,1750633228974,150.0,0.00021798,30]
[367040971,1750633229401,150.0,0.00023779,30]
[367040972,1750633303435,150.0,0.00022012,30]
[367040973,1750633303870,150.0,0.00024013,30]
[367040974,1750633375484,150.0,0.00021974,30]
[367040976,1750633403416,237.026678,0.00013699,2]
[367040980,1750633533118,-237.026678,0.00020187,2]
[367040981,1750633533139,-1837.14292853,0.00022,2]
[367040982,1750633545105,-2725.85707147,0.00022,2]
[367040983,1750633545127,-452.0,0.00022,2]
[367040984,1750633545149,-1149.80110236,0.00022182,2]
[367040985,1750633602385,500.0,0.00024862,30]
[367040986,1750633633238,-3850.19889764,0.0002196,2]
[367040987,1750633633259,-395.0,0.00022,2]
[367040988,1750633633281,-395.0,0.00022192,7]
[367040989,1750633633303,-227.363076,0.00022506,2]
[367040990,1750633633324,-188.068236,0.00022506,2]
[367040991,1750633633345,-300.0,0.00022698,2]
[367040992,1750633633369,-300.0,0.00022699,2]
[367040993,1750633633392,-1200.0,0.00022699,2]
[367040994,1750633633413,-300.0,0.00022699,2]
[367040995,1750633633435,-3000.0,0.000227,2]
[367040996,1750633633456,-3295.362601,0.0002271,2]
[367040997,1750633633477,-2643.8350304,0.00022808,2]
[367040998,1750633633506,-1853.7024562,0.000229,8]
[367040999,1750633633527,-294.68235355,0.00023007,2]
[367041000,1750633633549,-3339.66616478,0.00023007,2]
[367041001,1750633654506,-395.0,0.00023014,7]
[367041002,1750633654532,-1853.70245599,0.00023038,8]
[367041003,1750633654557,-798.85958646,0.00023176,8]
[367041006,1750633746099,-252.07580614,0.00020938,2]
[367041007,1750633746280,-1054.84286953,0.00023176,8]
[367041008,1750633746301,-1000.0,0.000232,2]
[367041009,1750633746328,-395.15713047,0.00023314,9]
[367041010,1750633767088,-2203.71235881,0.00022713,2]
[367041011,1750633828800,247.0,0.00022,2]
[367041012,1750633829136,247.0,0.00022192,7]
[367041126,1750633838820,-240.0,0.00022712,2]
[367041128,1750633838829,-300.0,0.00022712,2]
[367041130,1750633838840,-1200.0,0.00022712,2]
[367041132,1750633838849,-824.96035749,0.00022713,2]
[367041134,1750633838860,-338.12120829,0.00022713,2]
[367041138,1750633838887,-21533.20607541,0.00022713,2]
[367041140,1750633838896,-330.14072335,0.00023,2]
[367041142,1750633838905,-247.0,0.00023014,7]
[367041144,1750633838916,-500.0,0.00023412,2]
[367041146,1750633838925,-181.496418,0.00023451,2]
[367041148,1750633838934,-500.0,0.00023478,2]
[367041150,1750633838943,-800.0,0.00023497,2]
[367041152,1750633838952,-500.0,0.00023604,2]
[367041154,1750633838961,-500.0,0.00023727,2]
[367041156,1750633838971,-1935.72351399,0.00023727,2]
[367041178,1750633839135,-210.6964249,0.00023754,2]
[367041182,1750633839197,-500.0,0.00023762,2]
[367041184,1750633839207,-500.0,0.00023786,2]
[367041186,1750633839218,-500.0,0.00023794,2]
[367041188,1750633839227,-500.0,0.00023865,2]
[367041190,1750633839237,-1655.1603061,0.000239,10]
[367041192,1750633839248,-500.0,0.00023952,2]
[367041194,1750633839258,-3000.0,0.00024,3]
[367041196,1750633839268,-1655.16030604,0.00024003,10]
[367041198,1750633839277,-212.48,0.00024023,5]
[367041200,1750633839286,-1655.16030604,0.00024107,10]
[367041202,1750633839296,-500.0,0.0002416,2]
[367041204,1750633839308,-500.0,0.0002416,2]
[367041206,1750633839317,-253.0,0.00024164,7]
[367041208,1750633839326,-500.0,0.00024172,2]
[367041210,1750633839336,-500.0,0.00024172,2]
[367041212,1750633839345,-190.13678598,0.00024172,2]
[367041214,1750633839355,-500.0,0.00024172,2]
[367041216,1750633839364,-500.0,0.00024172,2]
[367041218,1750633839373,-500.0,0.00024172,2]
[367041220,1750633839382,-500.0,0.00024172,2]
[367041222,1750633839392,-500.0,0.00024172,2]
[367041224,1750633839401,-500.0,0.00024172,2]
[367041226,1750633839410,-500.0,0.00024172,2]
[367041228,1750633839419,-500.0,0.00024172,2]
[367041230,1750633839429,-500.0,0.00024172,2]
[367041232,1750633839438,-500.0,0.00024172,2]
[367041234,1750633839447,-199.05718883,0.00024172,2]
[367041236,1750633839457,-500.0,0.00024172,2]
[367041238,1750633839466,-12551.52821599,0.00024175,2]
[367041240,1750633839475,-213.59462818,0.00024175,2]
[367041242,1750633839485,-846.39664074,0.00024175,2]
[367041244,1750633839494,-160.0,0.00024175,2]
[367041246,1750633839503,-230.14598372,0.00024175,2]
[367041248,1750633839512,-160.0,0.00024175,2]
[367041250,1750633839521,-836.56272071,0.00024175,2]
[367041252,1750633839531,-425.01221603,0.00024175,2]
[367041254,1750633839540,-160.0,0.00024175,2]
[367041256,1750633839550,-160.0,0.00024175,2]
[367041258,1750633839560,-1242.0,0.00024176,2]
[367041260,1750633839569,-500.0,0.00024179,2]
[367041262,1750633839579,-1242.0,0.00024193,2]
[367041264,1750633839588,-500.0,0.000242,2]
[367041266,1750633839597,-500.0,0.000242,2]
[367041268,1750633839607,-500.0,0.000242,2]
[367041270,1750633839616,-500.0,0.000242,2]
[367041272,1750633839625,-500.0,0.000242,2]
[367041274,1750633839634,-500.0,0.000242,2]
[367041276,1750633839643,-500.0,0.000242,2]
[367041278,1750633839652,-500.0,0.000242,2]
[367041279,1750633839661,-1655.16030604,0.0002421,10]
[367041281,1750633839670,-500.0,0.0002422,2]
[367041284,1750633839680,-500.0,0.00024227,2]
[367041285,1750633839689,-168.0,0.00024306,2]
[367041287,1750633839698,-1242.0,0.00024306,2]
[367041289,1750633839708,-1655.16030604,0.00024314,10]
[367041290,1750633839717,-500.0,0.00024342,2]
[367041291,1750633839726,-500.0,0.00024388,2]
[367041292,1750633839736,-151.0,0.00024389,6]
[367041293,1750633839746,-1655.16030604,0.00024417,11]
[367041294,1750633839755,-1655.16030604,0.00024521,11]
[367041295,1750633839765,-1655.16030604,0.00024624,11]
[367041296,1750633839774,-500.0,0.00024632,2]
[367041297,1750633839783,-420.0,0.00024648,2]
[367041298,1750633839792,-836.56272071,0.00024648,10]
[367041299,1750633839803,-524.02598587,0.00024648,10]
[367041300,1750633839813,-213.59462818,0.00024648,10]
[367041301,1750633839822,-604.91181122,0.00024657,2]
[367041302,1750633839832,-500.0,0.00024657,2]
[367041303,1750633839841,-323.81290006,0.00024657,2]
[367041304,1750633839851,-500.0,0.00024657,2]
[367041305,1750633839860,-500.0,0.00024657,2]
[367041306,1750633839870,-500.0,0.00024657,2]
[367041307,1750633839880,-500.0,0.00024657,2]
[367041308,1750633839889,-500.0,0.00024657,2]
[367041309,1750633839899,-500.0,0.00024657,2]
[367041310,1750633839909,-500.0,0.00024657,2]
[367041311,1750633839918,-500.0,0.00024657,2]
[367041312,1750633839928,-4278.98858465,0.00024657,2]
[367041313,1750633839938,-704.45037723,0.00024658,7]
[367041314,1750633839947,-1000.0,0.00024658,2]
[367041315,1750633839957,-1000.0,0.00024658,2]
[367041316,1750633839967,-1000.0,0.00024658,2]
[367041317,1750633839977,-1000.0,0.00024658,2]
[367041318,1750633839986,-6133.88188042,0.00024658,2]
[367041319,1750633839996,-12500.0,0.00024658,3]
[367041320,1750633840006,-230.14598372,0.00024658,3]
[367041321,1750633840015,-846.39664074,0.00024658,3]
[367041322,1750633840024,-160.0,0.00024658,3]
[367041323,1750633840034,-836.56272071,0.00024658,3]
[367041324,1750633840044,-12551.52821599,0.00024658,3]
[367041325,1750633840053,-160.0,0.00024658,3]
[367041326,1750633840062,-425.01221603,0.00024658,3]
[367041327,1750633840072,-213.59462818,0.00024658,3]
[367041328,1750633840081,-420.0,0.00024663,2]
[367041329,1750633840091,-151.0,0.00024696,6]
[367041331,1750633840101,-978.98232357,0.00024708,2]
[367041332,1750633840112,-500.0,0.00024708,2]
[367041333,1750633840121,-1655.16030604,0.00024728,11]
[367041334,1750633840131,-1000.0,0.00024748,2]
[367041335,1750633840140,-1000.0,0.00024748,2]
[367041336,1750633840149,-1000.0,0.00024748,2]
[367041337,1750633840159,-1000.0,0.00024748,2]
[367041338,1750633840170,-188.93343796,0.00024748,2]
[367041339,1750633840180,-1680.0,0.00024777,2]
[367041340,1750633840189,-800.0,0.00024791,2]
[367041342,1750633840199,-1655.16030604,0.00024831,12]
[367041343,1750633840209,-200.64,0.00024833,3]
[367041344,1750633840219,-1257.21,0.00024843,3]
[367041345,1750633840228,-808.21,0.00024843,3]
[367041346,1750633840238,-404.11,0.00024843,3]
[367041347,1750633840249,-202.05,0.00024843,3]
[367041348,1750633840258,-606.2,0.00024853,3]
[367041349,1750633840268,-230.14598372,0.00024853,10]
[367041350,1750633840278,-846.39664074,0.00024853,10]
[367041351,1750633840288,-160.0,0.00024853,10]
[367041352,1750633840298,-425.01221603,0.00024853,10]
[367041353,1750633840310,-802.56,0.00024853,3]
[367041354,1750633840319,-313.54,0.00024853,3]
[367041355,1750633840328,-164.08,0.00024853,3]
[367041356,1750633840338,-500.0,0.00024862,7]
[367041357,1750633840348,-200.0,0.00024863,10]
[367041358,1750633840357,-200.0,0.00024863,10]
[367041359,1750633840366,-200.0,0.00024863,10]
[367041360,1750633840375,-200.0,0.00024863,10]
[367041361,1750633840386,-200.0,0.00024863,10]
[367041362,1750633840395,-200.0,0.00024863,10]
[367041363,1750633840405,-200.0,0.00024863,10]
[367041364,1750633840415,-200.0,0.00024863,10]
[367041365,1750633840424,-200.0,0.00024863,10]
[367041366,1750633840434,-200.0,0.00024863,10]
[367041367,1750633840443,-200.0,0.00024863,10]
[367041368,1750633840453,-200.0,0.00024863,10]
[367041369,1750633840462,-200.0,0.00024863,10]
[367041370,1750633840471,-200.0,0.00024863,10]
[367041371,1750633840481,-200.0,0.00024863,10]
[367041373,1750633840491,-200.0,0.00024863,10]
[367041375,1750633840501,-200.0,0.00024863,10]
[367041378,1750633840510,-200.0,0.00024863,10]
[367041379,1750633840519,-200.0,0.00024863,10]
[367041380,1750633840528,-200.0,0.00024863,10]
[367041381,1750633840538,-200.0,0.00024863,10]
[367041382,1750633840547,-200.64,0.00024863,3]
[367041383,1750633840558,-500.0,0.00024873,2]
[367041384,1750633840567,-500.0,0.00024873,2]
[367041385,1750633840577,-344.94862943,0.00024873,2]
[367041386,1750633840586,-500.0,0.00024873,2]
[367041387,1750633840597,-500.0,0.00024873,2]
[367041388,1750633840607,-504.53416508,0.00024873,2]
[367041389,1750633840616,-500.0,0.00024873,2]
[367041390,1750633840625,-500.0,0.00024873,2]
[367041391,1750633840635,-500.0,0.00024873,2]
[367041392,1750633840644,-500.0,0.00024873,2]
[367041393,1750633840653,-500.0,0.00024873,2]
[367041394,1750633840663,-500.0,0.00024873,2]
[367041395,1750633840673,-500.0,0.00024873,2]
[367041396,1750633840683,-5139.31367684,0.0002488,2]
[367041397,1750633840692,-357614.964936,0.000249,2]
[367041398,1750633840702,-1655.16030604,0.00024934,12]
[367041399,1750633840712,-560.35633233,0.00024973,2]
[367041400,1750633840721,-500.0,0.00024973,2]
[367041402,1750633840731,-500.0,0.00024973,2]
[367041404,1750633840740,-500.99072211,0.00024973,2]
[367041406,1750633840750,-500.0,0.00024973,2]
[367041408,1750633840760,-500.0,0.00024973,2]
[367041410,1750633840770,-500.0,0.00024973,2]
[367041412,1750633840779,-500.0,0.00024973,2]
[367041414,1750633840789,-500.0,0.00024973,2]
[367041416,1750633840798,-500.0,0.00024973,2]
[367041418,1750633840810,-500.0,0.00024973,2]
[367041420,1750633840819,-503.18969141,0.00024973,2]
[367041422,1750633840829,-500.0,0.00024973,2]
[367041424,1750633840838,-600.0,0.00024973,2]
[367041426,1750633840847,-340.25694793,0.00024973,2]
[367041428,1750633840857,-500.0,0.00024973,2]
[367041430,1750633840866,-500.0,0.00024973,2]
[367041432,1750633840876,-174.02374,0.0002498,7]
[367041434,1750633840885,-583.95252,0.0002498,7]
[367041436,1750633840895,-583.95252,0.0002498,7]
[367041438,1750633840904,-119204.988312,0.0002498,2]
[367041439,1750633840913,-81650.08163126,0.0002499,2]
[367041440,1750633840923,-1918.77,0.00025,2]
[367041441,1750633840932,-400.0,0.00025,10]
[367041442,1750633840941,-183.64,0.00025,2]
[367041443,1750633840951,-151.0,0.00025004,6]
[367041444,1750633840960,-500.0,0.00025011,2]
[367041445,1750633840970,-207.4,0.00025019,2]
[367041446,1750633840979,-500.0,0.00025019,2]
[367041447,1750633840989,-500.0,0.00025019,2]
[367041448,1750633840998,-500.0,0.00025019,2]
[367041449,1750633841008,-500.0,0.00025019,2]
[367041450,1750633841017,-500.0,0.00025019,2]
[367041451,1750633841026,-500.0,0.00025019,2]
[367041452,1750633841036,-500.0,0.00025019,2]
[367041453,1750633841045,-500.0,0.00025019,2]
[367041454,1750633841055,-500.0,0.00025019,2]
[367041456,1750633841064,-500.0,0.00025019,2]
[367041458,1750633841073,-1655.16030604,0.00025038,12]
[367041460,1750633841083,-264.32452911,0.00025077,2]
[367041461,1750633841092,-500.0,0.00025082,2]
[367041462,1750633841101,-500.0,0.00025124,2]
[367041463,1750633841110,-1655.16030604,0.00025141,12]
[367041464,1750633841119,-800.0,0.00025159,2]
[367041465,1750633841129,-1655.16030604,0.00025245,12]
[367041466,1750633841138,-190.0,0.00025261,2]
[367041467,1750633841148,-800.0,0.00025261,2]
[367041468,1750633841158,-5139.3136768,0.00025264,2]
[367041469,1750633841168,-800.0,0.00025293,2]
[367041470,1750633841180,-1500.0,0.00025296,2]
[367041471,1750633841190,-500.0,0.00025296,2]
[367041472,1750633841200,-622.47804815,0.00025296,2]
[367041473,1750633841212,-1000.0,0.00025296,2]
[367041474,1750633841221,-151.0,0.00025296,7]
[367041475,1750633841231,-151.0,0.00025296,7]
[367041476,1750633841241,-151.0,0.00025296,7]
[367041477,1750633841252,-500.0,0.00025299,2]
[367041478,1750633841261,-151.0,0.00025311,6]
[367041479,1750633841271,-500.0,0.00025328,2]
[367041480,1750633841280,-1655.16030604,0.00025348,13]
[367041481,1750633841292,-151.0,0.00025363,2]
[367041482,1750633841301,-800.0,0.00025366,2]
[367041483,1750633841313,-455.4247034,0.00025386,2]
[367041484,1750633841322,-500.0,0.0002541,8]
[367041485,1750633841332,-151.0,0.0002541,7]
[367041486,1750633841341,-353.506316,0.0002541,7]
[367041487,1750633841350,-353.506316,0.0002541,7]
[367041488,1750633841360,-3649.124394,0.0002541,7]
[367041489,1750633841369,-3649.124394,0.0002541,7]
[367041490,1750633841379,-583.95252,0.0002541,7]
[367041491,1750633841389,-583.95252,0.0002541,7]
[367041492,1750633841399,-155.434656,0.0002541,7]
[367041493,1750633841408,-881.23217875,0.00025421,2]
[367041494,1750633841418,-826.91218325,0.00025421,2]
[367041495,1750633841427,-1000.0,0.00025421,2]
[367041496,1750633841437,-1000.0,0.00025421,2]
[367041497,1750633841447,-1000.0,0.00025421,2]
[367041498,1750633841456,-1000.0,0.00025421,2]
[367041499,1750633841466,-1000.0,0.00025421,2]
[367041500,1750633841476,-1000.0,0.00025421,2]
[367041501,1750633841486,-1000.0,0.00025421,2]
[367041502,1750633841496,-1000.0,0.00025421,2]
[367041503,1750633841506,-151.0,0.00025421,7]
[367041504,1750633841515,-151.0,0.00025421,7]
[367041505,1750633841525,-151.0,0.00025421,7]
[367041506,1750633841534,-213.59462818,0.0002543,7]
[367041507,1750633841544,-1655.16030604,0.00025452,13]
[367041508,1750633841555,-500.0,0.0002551,5]
[367041509,1750633841564,-500.0,0.00025519,2]
[367041510,1750633841574,-1000.0,0.00025521,2]
[367041511,1750633841584,-1000.0,0.00025521,2]
[367041512,1750633841594,-1000.0,0.00025521,2]
[367041513,1750633841603,-1000.0,0.00025521,2]
[367041514,1750633841613,-796.86084997,0.00025521,2]
[367041515,1750633841622,-216.92236027,0.00025521,2]
[367041516,1750633841632,-1000.0,0.00025521,2]
[367041517,1750633841642,-1000.0,0.00025521,2]
[367041518,1750633841652,-1000.0,0.00025521,2]
[367041519,1750633841662,-1000.0,0.00025521,2]
[367041520,1750633841672,-1200.0,0.00025521,2]
[367041521,1750633841683,-500.0,0.00025521,2]
[367041522,1750633841693,-1000.0,0.00025521,2]
[367041523,1750633841703,-1655.16030604,0.00025555,13]
[367041524,1750633841712,-151.0,0.00025619,7]
[367041525,1750633841722,-240.79591418,0.00025648,2]
[367041526,1750633841731,-5139.3136768,0.00025648,2]
[367041527,1750633841740,-1655.16030604,0.00025659,13]
[367041528,1750633841750,-500.0,0.00025665,2]
[367041529,1750633841759,-800.0,0.0002567,2]
[367041530,1750633841769,-500.0,0.00025689,2]
[367041531,1750633841779,-500.0,0.00025699,2]
[367041532,1750633841788,-150.0,0.00025723,2]
[367041533,1750633841798,-1748.0,0.00025728,3]
[367041534,1750633841808,-1748.0,0.00025728,3]
[367041535,1750633841819,-1748.0,0.00025728,3]
[367041536,1750633841828,-1748.0,0.00025728,3]
[367041537,1750633841837,-151.0,0.00025728,3]
[367041538,1750633841847,-1748.0,0.00025728,3]
[367041539,1750633841857,-151.0,0.00025728,3]
[367041540,1750633841866,-151.0,0.00025728,3]
[367041541,1750633841876,-1748.0,0.00025728,3]
[367041542,1750633841885,-151.0,0.00025728,3]
[367041543,1750633841895,-1748.0,0.00025728,3]
[367041544,1750633841904,-151.0,0.00025728,3]
[367041545,1750633841914,-1748.0,0.00025728,3]
[367041546,1750633841923,-1748.0,0.00025728,3]
[367041547,1750633841933,-317.0,0.00025728,3]
[367041548,1750633841942,-317.0,0.00025728,3]
[367041549,1750633841952,-1748.0,0.00025728,3]
[367041550,1750633841962,-1748.0,0.00025728,3]
[367041551,1750633841972,-317.0,0.00025728,3]
[367041552,1750633841982,-1748.0,0.00025728,3]
[367041553,1750633841992,-317.0,0.00025728,3]
[367041554,1750633842002,-317.0,0.00025728,3]
[367041555,1750633842011,-1748.0,0.00025728,3]
[367041556,1750633842020,-317.0,0.00025728,3]
[367041557,1750633842030,-1748.0,0.00025728,3]
[367041558,1750633842040,-317.0,0.00025728,3]
[367041559,1750633842050,-1748.0,0.00025728,3]
[367041560,1750633842060,-317.0,0.00025728,3]
[367041561,1750633842069,-1748.0,0.00025728,3]
[367041562,1750633842079,-1748.0,0.00025728,3]
[367041563,1750633842088,-1748.0,0.00025728,3]
[367041564,1750633842098,-1748.0,0.00025728,3]
[367041565,1750633842107,-1748.0,0.00025728,3]
[367041566,1750633842117,-1748.0,0.00025728,3]
[367041567,1750633842126,-1748.0,0.00025728,3]
[367041568,1750633842136,-1748.0,0.00025728,3]
[367041569,1750633842145,-1748.0,0.00025728,3]
[367041570,1750633842155,-1748.0,0.00025728,3]